bitfinex-derivatives/quotes_BTCF0:USTF0_20241120
["timestamp","ask_amount","ask_price","bid_price","bid_amount"]
[1732119780895,0.053192,93890.0,93889.0,0.0603]
[1732119781359,0.03001072,93901.0,93889.0,0.0603]
[1732119781360,0.053189,93896.0,93889.0,0.0603]
[1732119781506,0.053184,93905.0,93900.0,0.053186]
[1732119781702,0.053184,93905.0,93904.0,0.10144563]
[1732119782003,0.00011284,93907.0,93904.0,0.10144563]
[1732119782400,0.39004197,93921.0,93907.0,0.053182]
[1732119782403,0.053175,93921.0,93907.0,0.053182]
[1732119782608,0.053162,93943.0,93916.0,0.3608]
[1732119782609,0.005,93934.0,93916.0,0.3608]
[1732119782808,0.053168,93932.0,93927.0,0.3608]
[1732119783001,0.005,93951.0,93928.0,0.0607]
[1732119783002,0.02943931,93942.0,93928.0,0.0607]
[1732119783311,0.053163,93942.0,93934.0,0.053167]
[1732119783615,0.00010069,93941.0,93928.0,0.0607]
[1732119783902,0.00010069,93941.0,93933.0,0.053173]
[1732119784107,0.00010069,93941.0,93932.0,0.3608]
[1732119784311,0.3608,93952.0,93932.0,0.3608]
[1732119784312,0.3608,93952.0,93940.0,0.51572347]
[1732119784601,0.3608,93963.0,93941.0,0.0593]
[1732119784602,0.05316,93957.0,93941.0,0.0593]
[1732119784806,0.413956,93963.0,93949.0,0.15492347]
[1732119784994,0.005,93970.0,93950.0,0.250603]
[1732119784995,0.01053937,93962.0,93950.0,0.250603]
[1732119785194,0.3608,93976.0,93950.0,0.19744]
[1732119785395,0.0001119,93955.0,93951.0,0.3608]
[1732119785591,0.005,93974.0,93954.0,0.15492347]
[1732119785793,0.3658,93976.0,93954.0,0.15492347]
[1732119785794,0.3608,93976.0,93955.0,0.25814]
[1732119785991,0.00080001,93976.0,93969.0,0.053153]
[1732119786204,0.00080001,93976.0,93970.0,0.112452]
[1732119786407,0.00080001,93976.0,93974.0,0.05315]
[1732119786609,0.00080001,93984.0,93970.0,0.21422347]
[1732119786904,0.00080001,93984.0,93982.0,0.053145]
[1732119787090,0.3608,93993.0,93983.0,0.19488]
[1732119787705,0.00012573,93984.0,93983.0,0.19488]
[1732119788101,0.053145,93983.0,93982.0,0.02399213]
[1732119788311,0.053145,93983.0,93951.0,0.3608]
[1732119788312,0.053155,93964.0,93951.0,0.3608]
[1732119788510,0.87652347,93964.0,93940.0,0.0586]
[1732119788807,0.413964,93949.0,93940.0,0.0586]
[1732119789104,0.005,93973.0,93940.0,0.0586]
[1732119789105,0.3608,93956.0,93941.0,0.15492347]
[1732119789415,0.3608,93959.0,93954.0,0.053161]
[1732119789609,0.053155,93965.0,93955.0,0.19484]
[1732119789803,0.053155,93965.0,93955.0,0.248]
[1732119790205,0.01082623,93964.0,93955.0,0.248]
[1732119790405,0.053159,93958.0,93949.0,0.053164]
[1732119790717,0.053156,93964.0,93950.0,0.19484]
[1732119791007,0.413953,93968.0,93959.0,0.053158]
[1732119791303,0.413953,93968.0,93950.0,0.34976347]
[1732119791304,0.0107837,93967.0,93951.0,0.053163]
[1732119791504,0.3608,93960.0,93951.0,0.053163]
[1732119791753,0.3608,93968.0,93944.0,0.053167]
[1732119791907,0.053162,93953.0,93945.0,0.19484]
[1732119792094,0.053163,93952.0,93945.0,0.19484]
[1732119792298,0.15492347,93962.0,93945.0,0.19484]
[1732119792605,0.053167,93944.0,93939.0,0.00013483]
[1732119792808,0.053169,93940.0,93939.0,0.00013483]
[1732119793837,0.413969,93940.0,93939.0,0.00013483]
[1732119794001,0.41410224,93940.0,93939.0,0.00013483]
[1732119794209,0.42496402,93940.0,93939.0,0.00013483]
[1732119794507,0.44234289,93940.0,93939.0,0.00013483]
[1732119795103,0.42496402,93940.0,93939.0,0.00013483]
[1732119795701,0.44226052,93940.0,93939.0,0.00013483]
[1732119796109,0.42496402,93940.0,93939.0,0.00013483]
[1732119796911,0.41410224,93940.0,93939.0,0.00013483]
[1732119797208,0.42490041,93940.0,93939.0,0.00013483]
[1732119798300,0.41490041,93940.0,93939.0,0.00013483]
[1732119798604,0.06396717,93940.0,93939.0,0.00013483]
[1732119799315,0.06410563,93940.0,93939.0,0.00013483]
[1732119799500,0.06410526,93940.0,93939.0,0.00013483]
[1732119799700,0.08147268,93940.0,93939.0,0.00013483]
[1732119800207,0.06410526,93940.0,93939.0,0.00013483]
[1732119803208,8.145e-05,93940.0,93939.0,0.00013483]
[1732119803908,8.145e-05,93940.0,93939.0,0.31949483]
[1732119804341,0.005,93966.0,93939.0,0.98029483]
[1732119804510,0.05316,93957.0,93946.0,0.15492347]
[1732119804824,0.00060001,93959.0,93948.0,0.3608]
[1732119805118,0.053164,93949.0,93947.0,0.20196]
[1732119805313,0.00013587,93948.0,93947.0,0.20252]
[1732119805520,0.00013587,93948.0,93947.0,0.255685]
[1732119805723,0.00013587,93948.0,93947.0,0.574445]
[1732119806316,0.00013587,93948.0,93947.0,0.20196]
[1732119807017,0.00013587,93948.0,93947.0,0.52128]
[1732119807813,0.00013587,93948.0,93947.0,0.59822341]
[1732119808315,0.00013587,93948.0,93947.0,0.22573841]
[1732119808316,0.05330087,93948.0,93947.0,0.22573841]
[1732119808517,0.00013587,93948.0,93947.0,0.20196]
[1732119808906,0.00013587,93948.0,93947.0,0.574445]
[1732119809107,0.00013587,93948.0,93947.0,0.255125]
[1732119809709,0.00013587,93948.0,93947.0,0.20196]
[1732119810020,0.00013587,93948.0,93947.0,0.255125]
[1732119810524,0.00013587,93948.0,93947.0,0.72936847]
[1732119810815,0.3658,93972.0,93947.0,0.72936847]
[1732119811006,0.01086162,93970.0,93960.0,0.053158]
[1732119811213,0.36136001,93972.0,93948.0,0.0587]
[1732119811214,0.01086162,93969.0,93949.0,0.053164]
[1732119811532,0.00056001,93972.0,93959.0,0.15492347]
[1732119813411,9.461e-05,93992.0,93991.0,0.05314]
[1732119813631,9.461e-05,93992.0,93987.0,0.3608]
[1732119813813,9.461e-05,93992.0,93990.0,0.053141]
[1732119814021,9.461e-05,93992.0,93987.0,0.3608]
[1732119814218,9.461e-05,93992.0,93988.0,0.3192]
[1732119814420,9.461e-05,93992.0,93991.0,0.20806347]
[1732119814920,0.1,94000.0,93991.0,0.82722347]
[1732119815113,0.1,94000.0,93999.0,0.20805947]
[1732119815619,0.3608,94012.0,94008.0,0.053131]
[1732119815921,0.3608,94012.0,93999.0,0.47408347]
[1732119815922,0.3608,94012.0,94009.0,0.05313]
[1732119815923,9.628e-05,94011.0,94009.0,0.05313]
[1732119816120,9.628e-05,94011.0,94007.0,9.233e-05]
[1732119816326,0.053129,94010.0,94007.0,9.233e-05]
[1732119816620,0.05313,94009.0,94007.0,9.233e-05]
[1732119816923,0.3608,94008.0,94007.0,9.233e-05]
[1732119817720,0.37201642,94008.0,94007.0,9.233e-05]
[1732119817924,0.42514742,94008.0,94007.0,9.233e-05]
[1732119818127,0.42523358,94008.0,94007.0,9.233e-05]
[1732119818516,0.42523337,94008.0,94007.0,9.233e-05]
[1732119818717,0.44331692,94008.0,94007.0,9.233e-05]
[1732119821030,0.42523337,94008.0,94007.0,9.233e-05]
[1732119821525,0.01130237,94008.0,94007.0,0.05322333]
[1732119821727,9.628e-05,94011.0,94010.0,0.053129]
[1732119823631,9.628e-05,94011.0,94010.0,0.372249]
[1732119823926,0.3608,94032.0,94011.0,0.31912]
[1732119823927,0.00056001,94032.0,94011.0,0.31912]
[1732119824128,0.005,94035.0,94019.0,0.3608]
[1732119824129,0.053124,94021.0,94019.0,0.3608]
[1732119824318,0.053124,94021.0,94019.0,0.57224]
[1732119824928,0.3608,94031.0,94019.0,0.57224]
[1732119825124,0.0111837,94030.0,94019.0,0.57224]
[1732119825326,0.3608,94031.0,94022.0,0.15492347]
[1732119825515,0.053118,94030.0,94022.0,0.15492347]
[1732119825719,0.3608,94031.0,94019.0,0.57292]
[1732119825720,0.36136001,94031.0,94019.0,0.57292]
[1732119826027,0.3608,94030.0,94019.0,0.59658186]
[1732119826325,0.053124,94020.0,94019.0,0.21144]
[1732119826721,0.413924,94020.0,94019.0,0.21144]
[1732119827027,0.413924,94020.0,94010.0,0.02125612]
[1732119827028,0.053129,94011.0,94010.0,0.02125612]
[1732119827231,0.053129,94011.0,94010.0,0.23269612]
[1732119827417,0.053131,94008.0,94007.0,9.233e-05]
[1732119827614,0.413931,94008.0,94007.0,9.233e-05]
[1732119827819,0.42507388,94008.0,94007.0,9.233e-05]
[1732119828015,0.37194288,94008.0,93984.0,0.20436]
[1732119828226,0.053139,93993.0,93988.0,0.053142]
[1732119828419,0.36136001,94000.0,93984.0,0.20436]
[1732119828621,0.01101709,93999.0,93984.0,0.20436]
[1732119828829,0.053136,93999.0,93984.0,0.20436]
[1732119829025,0.36136001,94000.0,93984.0,0.204497]
[1732119829026,0.01110756,93998.0,93984.0,0.204497]
[1732119829221,0.15492347,93994.0,93985.0,0.20436]
[1732119829414,0.053143,93986.0,93985.0,0.20436]
[1732119832026,9.035e-05,93998.0,93985.0,0.20436]
[1732119832220,0.053139,93993.0,93989.0,0.3608]
[1732119832421,0.053141,93990.0,93989.0,0.3608]
[1732119832627,0.053144,93985.0,93984.0,0.204497]
[1732119833025,0.053144,93985.0,93984.0,0.000137]
[1732119834735,0.413944,93985.0,93984.0,0.000137]
[1732119835030,0.053144,93985.0,93984.0,0.000137]
[1732119836531,0.06369042,93985.0,93984.0,0.000137]
[1732119837128,0.053144,93985.0,93984.0,0.000137]
[1732119837323,0.06375621,93985.0,93984.0,0.000137]
[1732119837530,0.053144,93985.0,93984.0,0.000137]
[1732119838029,0.053152,93970.0,93969.0,0.2044]
[1732119838326,0.053153,93968.0,93965.0,0.21296]
[1732119838527,0.413953,93968.0,93965.0,0.21296]
[1732119838727,0.053153,93968.0,93965.0,0.21296]
[1732119840031,0.42453288,93968.0,93965.0,0.21296]
[1732119840244,0.413953,93968.0,93965.0,0.21296]
[1732119840427,0.413953,93968.0,93957.0,7.522e-05]
[1732119840428,0.053159,93958.0,93957.0,7.522e-05]
[1732119840629,0.413959,93958.0,93957.0,7.522e-05]
[1732119841438,0.42452682,93958.0,93957.0,7.522e-05]
[1732119841938,0.413959,93958.0,93957.0,7.522e-05]
[1732119842526,0.424591,93958.0,93957.0,7.522e-05]
[1732119843526,0.413959,93958.0,93957.0,7.522e-05]
[1732119843731,0.42474488,93958.0,93957.0,7.522e-05]
[1732119843935,0.42474488,93958.0,93957.0,0.05323422]
[1732119843936,0.37158588,93958.0,93957.0,0.05323422]
[1732119844242,0.413959,93958.0,93953.0,0.18616068]
[1732119844435,0.3608,93958.0,93953.0,0.21004546]
[1732119844635,0.3608,93958.0,93953.0,0.07704678]
[1732119845337,0.3608,93958.0,93956.0,0.053165]
[1732119845539,0.3608,93958.0,93954.0,0.00010856]
[1732119845842,0.3608,93958.0,93954.0,0.05327456]
[1732119846232,0.05316,93967.0,93958.0,0.053164]
[1732119846429,0.06405561,93966.0,93954.0,0.00010856]
[1732119846636,0.01089561,93965.0,93954.0,0.00010856]
[1732119846938,0.01089561,93965.0,93960.0,0.053163]
[1732119847240,0.01089561,93965.0,93954.0,0.00010856]
[1732119847241,0.01101086,93964.0,93963.0,0.053161]
[1732119847448,0.01101086,93964.0,93962.0,0.15492347]
[1732119847449,0.053154,93977.0,93967.0,0.053159]
[1732119847647,0.3608,93981.0,93968.0,0.053158]
[1732119847648,0.053155,93975.0,93968.0,0.053158]
[1732119847842,0.3608,93981.0,93968.0,0.053158]
[1732119847843,0.053156,93973.0,93968.0,0.053158]
[1732119848039,0.01090039,93972.0,93968.0,0.053158]
[1732119848347,0.053155,93975.0,93963.0,0.053161]
[1732119848348,0.3608,93970.0,93963.0,0.053161]
[1732119848534,0.3608,93970.0,93962.0,0.15492347]
[1732119848535,0.01090039,93969.0,93962.0,0.15492347]
[1732119848841,0.01090039,93969.0,93955.0,0.0613]
[1732119849044,0.053166,93955.0,93954.0,0.00010856]
[1732119850138,0.42492741,93955.0,93954.0,0.00010856]
[1732119850342,0.42504115,93955.0,93950.0,0.00159636]
[1732119850547,0.413968,93951.0,93950.0,0.00159636]
[1732119850734,0.42495469,93951.0,93950.0,0.00159636]
[1732119850939,0.053177,93936.0,93934.0,0.02126575]
[1732119851543,0.053177,93936.0,93933.0,0.23697293]
[1732119852041,0.02386161,93949.0,93933.0,0.23697293]
[1732119852242,0.4269,93962.0,93931.0,0.0001265]
[1732119852243,0.053179,93932.0,93931.0,0.0001265]
[1732119853146,0.06433944,93932.0,93931.0,0.0001265]
[1732119854156,0.06433944,93932.0,93911.0,0.00159711]
[1732119854157,0.05319,93912.0,93911.0,0.00159711]
[1732119854740,0.05319,93912.0,93911.0,0.02628637]
[1732119854955,0.41399,93912.0,93911.0,0.00159711]
[1732119855260,0.56891347,93912.0,93911.0,0.00159711]
[1732119855553,0.56891347,93912.0,93900.0,0.10009144]
[1732119855554,0.053196,93901.0,93900.0,0.10009144]
[1732119855853,0.42522466,93901.0,93900.0,0.10009144]
[1732119856247,0.44318387,93901.0,93900.0,0.10009144]
[1732119856849,0.38998787,93901.0,93866.0,0.34545274]
[1732119857154,0.053204,93888.0,93879.0,0.053209]
[1732119857457,0.3608,93901.0,93872.0,0.053212]
[1732119857458,0.053199,93898.0,93872.0,0.053212]
[1732119857755,0.053209,93879.0,93874.0,9.022e-05]
[1732119858050,0.3608,93891.0,93874.0,9.022e-05]
[1732119858249,0.01121242,93890.0,93874.0,9.022e-05]
[1732119858451,0.3608,93883.0,93874.0,9.022e-05]
[1732119858752,0.01121242,93882.0,93874.0,9.022e-05]
[1732119858951,0.3608,93892.0,93874.0,9.022e-05]
[1732119858952,0.3608,93876.0,93874.0,9.022e-05]
[1732119859256,0.3608,93876.0,93874.0,0.02477311]
[1732119860855,0.414011,93876.0,93874.0,0.02477311]
[1732119861943,0.36136001,93892.0,93874.0,0.02477311]
[1732119862148,0.15492347,93904.0,93874.0,0.02477311]
[1732119862149,0.02940798,93891.0,93888.0,0.15492347]
[1732119862354,0.3608,93907.0,93890.0,0.15492347]
[1732119862554,0.36136001,93907.0,93898.0,0.053198]
[1732119862856,0.36136001,93907.0,93899.0,0.22028]
[1732119863044,0.36136001,93907.0,93902.0,0.053196]
[1732119863045,0.00056001,93907.0,93902.0,0.053196]
[1732119863247,0.00013169,93912.0,93904.0,0.053194]
[1732119863458,0.00013169,93912.0,93901.0,0.15492347]
[1732119863646,0.00013169,93912.0,93901.0,0.81572347]
[1732119863954,0.3608,93923.0,93910.0,0.15492347]
[1732119864148,0.01120337,93922.0,93910.0,0.053191]
[1732119864349,0.00056001,93923.0,93920.0,0.15492347]
[1732119864549,0.3608,93960.0,93924.0,0.053183]
[1732119864550,0.053174,93941.0,93924.0,0.053183]
[1732119864744,0.053174,93941.0,93934.0,0.3608]
[1732119864944,0.053174,93941.0,93935.0,0.22028]
[1732119865145,8.972e-05,93940.0,93935.0,0.22028]
[1732119865660,8.972e-05,93940.0,93939.0,0.51572347]
[1732119865962,0.01,93962.0,93948.0,0.05317]
[1732119866146,0.01,93962.0,93939.0,0.51572347]
[1732119866147,0.0243628,93971.0,93952.0,0.053167]
[1732119866343,0.15492347,93975.0,93947.0,0.51572347]
[1732119866344,0.053159,93968.0,93947.0,0.51572347]
[1732119866655,0.0624,93977.0,93957.0,0.3608]
[1732119866859,0.00010117,93960.0,93957.0,0.3608]
[1732119867045,0.053164,93959.0,93957.0,0.3608]
[1732119867246,0.00010117,93960.0,93957.0,0.3608]
[1732119867557,0.00010117,93960.0,93939.0,0.3608]
[1732119867558,0.00010117,93960.0,93948.0,0.02409148]
[1732119867855,0.00010117,93960.0,93947.0,0.3608]
[1732119867856,0.053167,93953.0,93947.0,0.3608]
[1732119868361,0.053167,93953.0,93936.0,9.392e-05]
[1732119868362,0.15492347,93956.0,93940.0,0.3608]
[1732119868652,0.15492347,93956.0,93936.0,9.392e-05]
[1732119868653,0.053176,93937.0,93936.0,9.392e-05]
[1732119869061,0.20809947,93937.0,93936.0,9.392e-05]
[1732119869248,0.22575523,93937.0,93936.0,9.392e-05]
[1732119869457,0.22575523,93937.0,93929.0,0.00159674]
[1732119869458,0.31936,93936.0,93902.0,0.18984927]
[1732119869652,0.31936,93936.0,93901.0,0.22024]
[1732119869653,0.053195,93904.0,93901.0,0.22024]
[1732119870264,0.053195,93904.0,93889.0,0.08804927]
[1732119870265,0.053203,93890.0,93889.0,0.08804927]
[1732119870560,0.053212,93873.0,93871.0,0.3608]
[1732119870751,0.053212,93873.0,93872.0,0.3608]
[1732119870952,0.15502266,93890.0,93872.0,0.7216]
[1732119871148,0.15502266,93890.0,93884.0,0.3608]
[1732119871149,9.919e-05,93890.0,93884.0,0.3608]
[1732119871654,0.053205,93886.0,93884.0,0.3608]
[1732119872853,0.053205,93886.0,93872.0,0.3608]
[1732119872854,0.053212,93873.0,93872.0,0.3608]
[1732119873048,9.919e-05,93890.0,93862.0,0.01512848]
[1732119873049,0.053206,93884.0,93862.0,0.01512848]
[1732119873251,9.919e-05,93890.0,93862.0,0.01512848]
[1732119873252,0.053218,93863.0,93862.0,0.01512848]
[1732119876062,0.053218,93863.0,93828.0,0.3608]
[1732119876063,0.05323,93842.0,93828.0,0.3608]
[1732119876248,0.05323,93842.0,93819.0,0.3608]
[1732119876249,0.3608,93843.0,93820.0,0.02419524]
[1732119876450,0.2372958,93855.0,93819.0,0.3608]
[1732119876451,0.053237,93830.0,93819.0,0.38208248]
[1732119876644,0.053218,93864.0,93819.0,0.3608]
[1732119876645,0.2372958,93842.0,93819.0,0.3608]
[1732119876860,0.3608,93858.0,93819.0,0.3608]
[1732119876861,0.01072608,93841.0,93819.0,0.3608]
[1732119877165,0.01072608,93840.0,93827.0,0.3608]
[1732119877460,0.053241,93824.0,93820.0,0.0001038]
[1732119877756,0.010834,93839.0,93820.0,0.0001038]
[1732119877757,0.053241,93823.0,93820.0,0.0001038]
[1732119877957,0.053242,93822.0,93820.0,0.0001038]
[1732119879855,0.053238,93828.0,93820.0,0.0001038]
[1732119880264,0.05324,93826.0,93820.0,0.0001038]
[1732119880762,0.053236,93832.0,93820.0,0.0001038]
[1732119881151,0.00010792,93839.0,93828.0,0.3608]
[1732119881152,0.053233,93836.0,93828.0,0.3608]
[1732119881350,0.053233,93836.0,93820.0,0.0001038]
[1732119881865,0.00010792,93839.0,93824.0,0.3608]
[1732119882062,0.053233,93837.0,93824.0,0.3608]
[1732119882269,0.00010792,93839.0,93824.0,0.3608]
[1732119882270,0.00010792,93839.0,93832.0,0.3608]
[1732119882859,0.00010792,93839.0,93838.0,0.3608]
[1732119883067,0.00010792,93839.0,93838.0,0.58972]
[1732119883266,0.00010792,93839.0,93820.0,0.26167631]
[1732119883267,0.00010792,93839.0,93820.0,0.0001038]
[1732119883458,0.3608,93821.0,93820.0,0.0001038]
[1732119888871,0.3608,93821.0,93820.0,0.2290638]
[1732119889057,0.3608,93821.0,93820.0,0.0001038]
[1732119889258,0.00056001,93827.0,93820.0,0.0001038]
[1732119889470,0.02417935,93827.0,93820.0,0.0001038]
[1732119889661,0.053242,93821.0,93820.0,0.0001038]
[1732119889862,0.3608,93823.0,93820.0,0.0001038]
[1732119892973,0.3608,93824.0,93820.0,0.0001038]
[1732119893564,0.053242,93822.0,93820.0,0.0001038]
[1732119894271,0.053253,93802.0,93800.0,1.1]
[1732119894462,0.3,93822.0,93800.0,1.1]
[1732119894463,0.3608,93801.0,93800.0,1.1]
[1732119895672,0.414053,93801.0,93800.0,1.1]
[1732119895869,0.3608,93801.0,93800.0,1.1]
[1732119897077,0.3608,93801.0,93800.0,1.41984]
[1732119897262,0.36136001,93819.0,93800.0,1.41984]
[1732119897458,0.36136001,93819.0,93807.0,0.053249]
[1732119897459,0.3608,93808.0,93807.0,0.053249]
[1732119897663,0.38520629,93819.0,93807.0,0.22904]
[1732119897870,0.3608,93810.0,93808.0,0.053249]
[1732119898074,0.3608,93810.0,93807.0,0.22904]
[1732119899275,0.06381151,93809.0,93806.0,0.22904]
[1732119899574,0.01056247,93808.0,93806.0,0.22904]
[1732119899769,0.01056247,93807.0,93806.0,0.22904]
[1732119899970,0.053253,93801.0,93800.0,1.10068]
[1732119900166,0.42461547,93801.0,93800.0,1.1]
[1732119900870,0.414053,93801.0,93800.0,1.1]
[1732119901076,0.38832552,93801.0,93800.0,1.1]
[1732119901269,0.02752552,93801.0,93800.0,1.1]
[1732119901469,0.01058674,93801.0,93800.0,1.1]
[1732119901781,0.3608,93808.0,93800.0,1.1]
[1732119902076,0.053253,93802.0,93800.0,1.1]
[1732119902270,0.01049519,93801.0,93800.0,1.1]
[1732119902464,0.05325,93807.0,93800.0,1.1]
[1732119902465,0.01049519,93806.0,93800.0,1.1]
[1732119902664,0.3608,93808.0,93800.0,1.1]
[1732119902665,0.01049519,93805.0,93804.0,0.15537672]
[1732119902867,0.01049519,93807.0,93800.0,1.1]
[1732119903076,0.01049519,93806.0,93800.0,1.1]
[1732119903275,0.01049519,93805.0,93800.0,1.1]
[1732119903481,0.01052325,93804.0,93800.0,1.34297939]
[1732119903693,0.01052325,93803.0,93802.0,0.053253]
[1732119903886,0.010437,93803.0,93802.0,0.46094026]
[1732119904186,0.3608,93811.0,93802.0,0.47521672]
[1732119904368,0.3608,93811.0,93809.0,0.053249]
[1732119904369,0.01044272,93810.0,93809.0,0.053249]
[1732119904886,0.3608,93832.0,93809.0,0.6198]
[1732119905184,0.053237,93829.0,93816.0,0.25457544]
[1732119905364,0.3608,93832.0,93817.0,0.25457544]
[1732119905365,0.01652805,93828.0,93817.0,0.25457544]
[1732119905567,0.41404,93824.0,93813.0,0.31689114]
[1732119905771,0.3608,93815.0,93810.0,0.31689114]
[1732119906083,0.01652717,93814.0,93810.0,0.00072]
[1732119906269,0.053248,93811.0,93803.0,0.25478485]
[1732119906478,0.3608,93804.0,93803.0,0.25478485]
[1732119906779,0.3608,93804.0,93802.0,0.22232]
[1732119906983,0.053252,93803.0,93802.0,0.22164]
[1732119907177,0.053253,93801.0,93800.0,1.12129939]
[1732119907386,0.414053,93801.0,93800.0,1.12129939]
[1732119907574,0.02403591,93821.0,93800.0,1.27667611]
[1732119907778,0.01,93836.0,93821.0,0.053242]
[1732119907972,0.0669,93838.0,93835.0,0.3608]
[1732119908173,0.0669,93838.0,93830.0,0.25472878]
[1732119908174,0.09129469,93838.0,93830.0,0.25472878]
[1732119908479,0.01669512,93837.0,93831.0,0.25472878]
[1732119908784,0.09129469,93838.0,93832.0,0.25472878]
[1732119908785,0.3608,93834.0,93832.0,0.25472878]
[1732119909086,0.37749512,93833.0,93824.0,0.22976]
[1732119909284,0.01669512,93832.0,93824.0,0.54665114]
[1732119909582,0.3608,93825.0,93824.0,0.22976]
[1732119909883,0.3608,93825.0,93820.0,0.31689114]
[1732119910068,0.3608,93825.0,93818.0,0.31689114]
[1732119910069,0.053241,93824.0,93818.0,0.31689114]
[1732119910270,0.15537672,93820.0,93813.0,0.21608715]
[1732119910581,0.15537672,93820.0,93792.0,0.3608]
[1732119910582,0.3608,93814.0,93799.0,0.3818932]
[1732119910783,0.3608,93804.0,93801.0,0.32963983]
[1732119910974,0.3608,93804.0,93802.0,0.32963983]
[1732119911170,0.3608,93804.0,93803.0,0.3261064]
[1732119911375,0.3608,93804.0,93800.0,1.12197939]
[1732119911580,0.3608,93804.0,93800.0,1.12129939]
[1732119911783,0.36136001,93814.0,93800.0,1.12129939]
[1732119911983,0.3608,93814.0,93813.0,0.25467933]
[1732119912373,0.3608,93814.0,93813.0,0.25470537]
[1732119912576,0.3608,93814.0,93812.0,0.25470537]
[1732119912773,0.01659243,93813.0,93812.0,0.25470537]
[1732119912977,0.01659243,93813.0,93809.0,0.25470537]
[1732119913277,0.37739703,93812.0,93806.0,0.25470537]
[1732119913478,0.01659703,93811.0,93805.0,0.25470537]
[1732119913684,0.3608,93812.0,93806.0,0.25470537]
[1732119913879,0.3608,93812.0,93811.0,0.25470537]
[1732119914082,0.3608,93812.0,93800.0,1.12129939]
[1732119914083,0.36144,93812.0,93807.0,0.25470537]
[1732119914282,0.36144,93812.0,93811.0,0.053248]
[1732119914471,0.36144,93812.0,93811.0,0.22976]
[1732119914472,0.3608,93812.0,93811.0,0.22976]
[1732119914878,0.053249,93808.0,93800.0,1.12129939]
[1732119915075,0.3608,93801.0,93800.0,1.1]
[1732119915275,0.3608,93801.0,93800.0,0.4874658]
[1732119915276,0.43072878,93801.0,93800.0,0.4874658]
[1732119915680,0.75056878,93801.0,93800.0,0.3851658]
[1732119915887,0.36088478,93801.0,93800.0,0.3851658]
[1732119916786,0.37119104,93801.0,93800.0,0.3851658]
[1732119916977,0.37119104,93801.0,93800.0,0.73864668]
[1732119917187,0.36088478,93801.0,93800.0,0.73864668]
[1732119917374,0.37124522,93801.0,93800.0,0.73864668]
[1732119918289,0.36088478,93801.0,93800.0,0.3851658]
[1732119918494,0.38796497,93801.0,93800.0,0.3851658]
[1732119918786,0.37130024,93801.0,93800.0,0.79030671]
[1732119919184,0.37130024,93801.0,93800.0,0.74530671]
[1732119919984,0.36088478,93801.0,93800.0,0.69205271]
[1732119920383,0.37131737,93801.0,93800.0,0.69205271]
[1732119921283,0.37131737,93801.0,93800.0,1.01189271]
[1732119921483,0.37131737,93801.0,93800.0,1.43114505]
[1732119921484,0.36088478,93801.0,93800.0,1.43114505]
[1732119921684,0.36088478,93801.0,93800.0,1.34110505]
[1732119922091,0.36088478,93801.0,93800.0,0.92185271]
[1732119922277,0.37136833,93801.0,93800.0,0.97510671]
[1732119922477,0.37136833,93801.0,93800.0,1.41236736]
[1732119922880,0.36088478,93801.0,93800.0,0.69205271]
[1732119923082,0.37131296,93801.0,93800.0,0.69205271]
[1732119923789,0.37131296,93801.0,93800.0,1.12749937]
[1732119923983,0.37131296,93801.0,93800.0,0.74530671]
[1732119924180,0.37131296,93801.0,93800.0,1.18323487]
[1732119924381,0.37131296,93801.0,93800.0,0.74530671]
[1732119924781,0.37131296,93801.0,93800.0,0.76938056]
[1732119925291,0.38791931,93801.0,93800.0,0.76938056]
[1732119925679,0.38791977,93801.0,93800.0,0.71612656]
[1732119925993,0.37131296,93801.0,93800.0,0.71612656]
[1732119926289,0.37131296,93801.0,93800.0,0.36423965]
[1732119926290,0.74440596,93801.0,93800.0,0.36423965]
[1732119926494,0.42456596,93801.0,93800.0,0.36423965]
[1732119927579,0.42456596,93801.0,93800.0,0.3401658]
[1732119929391,0.0694,93821.0,93800.0,0.3401658]
[1732119929392,0.00056001,93812.0,93800.0,0.7009658]
[1732119929595,0.02421035,93830.0,93825.0,0.05324]
[1732119929796,0.005,93846.0,93825.0,1.90608604]
[1732119929991,0.00103,93848.0,93846.0,0.053227]
[1732119930303,0.005,93867.0,93858.0,0.05322]
[1732119930599,0.3608,93880.0,93859.0,0.95861721]
[1732119930600,7.907e-05,93864.0,93859.0,0.95861721]
[1732119931497,7.907e-05,93864.0,93859.0,1.87372113]
[1732119931685,0.3658,93879.0,93859.0,1.87372113]
[1732119931686,1e-08,93869.0,93868.0,0.053215]
[1732119931886,0.005,93884.0,93883.0,0.053207]
[1732119932095,0.3608,93896.0,93893.0,0.053201]
[1732119932299,0.3608,93896.0,93883.0,0.72864764]
[1732119932300,0.3608,93896.0,93884.0,0.38070908]
[1732119932500,0.3608,93896.0,93894.0,0.25335566]
[1732119932706,0.00013596,93895.0,93894.0,0.23738392]
[1732119933002,0.00013596,93895.0,93894.0,0.3608]
[1732119933986,0.00013596,93895.0,93891.0,0.25292433]
[1732119934189,0.00013596,93895.0,93889.0,0.25292433]
[1732119934395,0.00013596,93895.0,93879.0,0.22976]
[1732119934396,0.36093596,93895.0,93881.0,0.3608]
[1732119934802,0.3608,93887.0,93880.0,0.02128749]
[1732119934986,0.3608,93887.0,93871.0,0.22976]
[1732119934987,0.3608,93887.0,93871.0,0.053213]
[1732119935189,0.3608,93887.0,93866.0,0.053216]
[1732119935190,0.3608,93879.0,93866.0,0.053216]
[1732119935399,0.3608,93879.0,93870.0,0.053214]
[1732119935794,0.414009,93879.0,93864.0,0.02128749]
[1732119935993,0.053211,93875.0,93864.0,0.02128749]
[1732119936200,0.3608,93887.0,93844.0,0.618093]
[1732119936201,0.053214,93871.0,93859.0,0.00012957]
[1732119936392,0.3608,93873.0,93859.0,0.00012957]
[1732119936594,0.005,93885.0,93859.0,0.00012957]
[1732119936795,0.005,93892.0,93873.0,0.3608]
[1732119937093,0.3608,93894.0,93873.0,0.3608]
[1732119937299,0.005,93903.0,93873.0,0.3608]
[1732119937489,0.3608,93896.0,93888.0,0.053204]
[1732119938290,0.053194,93905.0,93884.0,0.22676]
[1732119938493,0.053194,93905.0,93888.0,0.053204]
[1732119938696,0.005,93912.0,93893.0,0.3608]
[1732119938697,0.058191,93912.0,93893.0,0.3608]
[1732119939200,0.005,93912.0,93894.0,0.0532]
[1732119939595,0.005,93912.0,93894.0,0.37272]